bitfinex-derivatives/quotes_BTCF0:USTF0_20250902
["timestamp","ask_amount","ask_price","bid_price","bid_amount"]
[1756839090130,0.0932078,110790.0,110780.0,0.10471]
[1756839090333,0.0932078,110790.0,110780.0,0.56333453]
[1756839090635,0.1663678,110790.0,110780.0,0.10471]
[1756839091829,0.4163678,110790.0,110780.0,0.06831]
[1756839092127,0.4163678,110790.0,110780.0,0.10471]
[1756839092332,0.3901778,110790.0,110770.0,0.0364]
[1756839092630,0.07316,110780.0,110770.0,0.09471]
[1756839092823,0.09410496,110780.0,110770.0,0.03377]
[1756839093024,0.09410496,110780.0,110770.0,0.09471]
[1756839093731,0.09410496,110780.0,110770.0,0.09571]
[1756839094331,0.09410496,110780.0,110770.0,0.09471]
[1756839094529,0.09410496,110780.0,110770.0,0.09571]
[1756839095438,0.09410496,110780.0,110770.0,0.55433453]
[1756839095439,0.02094496,110780.0,110770.0,0.55433453]
[1756839095739,0.09221589,110790.0,110780.0,0.08471]
[1756839095938,0.09221562,110790.0,110780.0,0.54333453]
[1756839096534,0.11645562,110790.0,110780.0,0.54333453]
[1756839096735,0.16537562,110790.0,110780.0,0.54333453]
[1756839096937,0.16537562,110790.0,110780.0,0.08471]
[1756839097140,0.16637562,110790.0,110780.0,0.08471]
[1756839098327,0.09321562,110790.0,110780.0,0.08471]
[1756839098635,0.01821562,110790.0,110780.0,0.79333453]
[1756839098932,0.08999113,110790.0,110780.0,0.79333453]
[1756839099129,0.001,110790.0,110780.0,0.89359573]
[1756839099632,0.001,110790.0,110780.0,0.80333453]
[1756839099837,0.001,110790.0,110780.0,0.89359573]
[1756839100432,0.04862694,110830.0,110780.0,0.89359573]
[1756839100433,0.09603694,110830.0,110820.0,0.08356]
[1756839100638,0.02468,110830.0,110820.0,0.54218453]
[1756839100839,0.1376116,110850.0,110830.0,0.08356]
[1756839100840,0.08271,110840.0,110830.0,0.08356]
[1756839101040,0.08271,110840.0,110830.0,0.04874]
[1756839101538,0.08271,110840.0,110830.0,0.08307]
[1756839101926,0.11203953,110840.0,110830.0,0.04825]
[1756839102130,0.11203953,110840.0,110820.0,0.49344453]
[1756839102326,0.003,110830.0,110820.0,0.54169453]
[1756839102530,0.08649,110830.0,110820.0,0.08307]
[1756839102733,0.08349,110830.0,110820.0,0.54169453]
[1756839103241,0.04819,110830.0,110820.0,0.54169453]
[1756839103431,0.08649,110830.0,110820.0,0.54502804]
[1756839103632,0.05119,110830.0,110820.0,0.08307]
[1756839103833,0.08649,110830.0,110820.0,0.54502804]
[1756839104138,0.003,110830.0,110820.0,0.54502804]
[1756839104437,0.02968,110830.0,110820.0,0.54502804]
[1756839104642,0.005,110830.0,110820.0,0.79502804]
[1756839105242,0.005,110830.0,110820.0,0.80502804]
[1756839105936,0.005,110830.0,110820.0,1.73322804]
[1756839106536,0.005,110830.0,110820.0,1.82345664]
[1756839107238,0.005,110830.0,110820.0,1.73222804]
[1756839107629,0.003,110830.0,110820.0,1.73470804]
[1756839108531,0.003,110830.0,110820.0,1.82493664]
[1756839108733,1.5,110860.0,110840.0,0.08307]
[1756839108947,1.52468,110860.0,110850.0,0.54502804]
[1756839109138,1.54819,110860.0,110850.0,0.54502804]
[1756839109337,1.61860691,110860.0,110850.0,0.54502804]
[1756839109537,0.13211694,110890.0,110880.0,0.04825]
[1756839109738,0.13211694,110890.0,110880.0,0.54502804]
[1756839110128,0.13211694,110890.0,110880.0,0.08307]
[1756839110344,0.13211694,110890.0,110880.0,0.85618804]
[1756839110535,0.15296449,110890.0,110880.0,0.85618804]
[1756839110839,0.10433755,110890.0,110880.0,1.47174804]
[1756839111136,0.02484755,110890.0,110880.0,1.47174804]
[1756839111340,0.05396508,110890.0,110880.0,0.08307]
[1756839111544,0.07303755,110890.0,110880.0,0.98154804]
[1756839111846,0.07303755,110890.0,110880.0,1.47238804]
[1756839112037,0.10833755,110890.0,110880.0,1.47274804]
[1756839112344,0.10833755,110890.0,110880.0,1.47566804]
[1756839112637,0.1025054,110890.0,110880.0,1.47566804]
[1756839112845,0.0985054,110890.0,110880.0,1.47666804]
[1756839113041,0.0985054,110890.0,110880.0,1.47766804]
[1756839113245,0.0985054,110890.0,110880.0,1.01571]
[1756839113635,0.0985054,110890.0,110880.0,1.47666804]
[1756839113844,0.1338054,110890.0,110880.0,0.55102804]
[1756839114146,0.1338054,110890.0,110880.0,1.39930804]
[1756839114336,0.1338054,110890.0,110880.0,0.08907]
[1756839114537,0.0985054,110890.0,110880.0,0.55102804]
[1756839114936,0.0503154,110890.0,110880.0,0.55102804]
[1756839115156,0.0985054,110890.0,110880.0,0.55102804]
[1756839115542,0.1338054,110890.0,110880.0,0.55102804]
[1756839115740,0.1338054,110890.0,110880.0,1.33094804]
[1756839116337,0.1338054,110890.0,110880.0,1.48090804]
[1756839116542,0.1338054,110890.0,110880.0,1.01823]
[1756839116744,0.13372138,110890.0,110880.0,1.48018804]
[1756839116939,0.13372138,110890.0,110880.0,0.55102804]
[1756839117138,0.38372138,110890.0,110880.0,0.08907]
[1756839117339,0.38372138,110890.0,110880.0,0.83305]
[1756839117539,0.38372138,110890.0,110880.0,0.86787]
[1756839117745,0.38372138,110890.0,110880.0,0.83305]
[1756839118147,0.38372138,110890.0,110880.0,0.006]
[1756839118346,0.38372138,110890.0,110880.0,0.005]
[1756839118948,0.84567942,110890.0,110880.0,0.004]
[1756839119348,0.13372138,110890.0,110880.0,0.004]
[1756839119550,0.13372138,110890.0,110880.0,0.003]
[1756839119850,0.59567942,110890.0,110880.0,0.003]
[1756839120148,0.38372138,110890.0,110880.0,0.003]
[1756839120349,0.08349,110860.0,110850.0,0.04825]
[1756839120550,0.04819,110870.0,110860.0,0.08307]
[1756839120750,0.04819,110870.0,110860.0,0.54502804]
[1756839120751,0.08349,110870.0,110860.0,0.54502804]
[1756839120946,0.08349,110870.0,110860.0,0.08307]
[1756839121151,0.04819,110850.0,110840.0,0.10353429]
[1756839121346,0.09706,110850.0,110840.0,0.0442]
[1756839121747,0.09706,110850.0,110840.0,0.02]
[1756839122050,0.09706,110850.0,110840.0,0.0442]
[1756839122240,0.09706,110850.0,110840.0,0.02]
[1756839122441,0.11783404,110850.0,110840.0,0.02]
[1756839122656,0.10426404,110850.0,110840.0,0.10407]
[1756839123248,0.10426404,110850.0,110840.0,0.56602804]
[1756839123445,0.04545404,110850.0,110840.0,0.56602804]
[1756839123642,0.02077404,110850.0,110840.0,1.74218804]
[1756839123843,0.08349,110870.0,110860.0,0.08307]
[1756839124052,0.10427445,110870.0,110860.0,0.54502804]
[1756839124251,0.10427445,110870.0,110860.0,0.08307]
[1756839124455,0.02078445,110870.0,110860.0,0.54502804]
[1756839124750,0.08349,110880.0,110870.0,0.08307]
[1756839125050,0.02079106,110880.0,110870.0,0.54502804]
[1756839125255,0.10428106,110880.0,110870.0,0.54502804]
[1756839125554,0.10428106,110880.0,110870.0,0.08307]
[1756839125756,0.10428106,110880.0,110870.0,0.54502804]
[1756839126554,0.10528106,110880.0,110870.0,0.54502804]
[1756839126949,0.10728106,110880.0,110870.0,0.54502804]
[1756839127248,0.04847106,110880.0,110870.0,0.54502804]
[1756839127554,0.07198106,110880.0,110870.0,0.54502804]
[1756839127755,0.07198106,110880.0,110870.0,0.08307]
[1756839127945,0.07198106,110880.0,110870.0,0.54502804]
[1756839128349,0.10717106,110880.0,110870.0,0.08307]
[1756839128559,0.5691291,110880.0,110860.0,0.03589]
[1756839129550,0.5339391,110880.0,110840.0,0.48242752]
[1756839129755,0.5339391,110880.0,110850.0,0.08327]
[1756839129756,0.08205,110860.0,110850.0,0.08327]
[1756839129954,0.06771925,110860.0,110850.0,0.10327]
[1756839130161,0.10290925,110860.0,110850.0,0.10327]
[1756839130553,0.81486729,110860.0,110850.0,0.02]
[1756839130861,0.09644,110850.0,110840.0,0.002]
[1756839131150,0.57925729,110850.0,110840.0,0.012]
[1756839131349,0.82925729,110850.0,110840.0,0.01]
[1756839131546,0.87788423,110850.0,110840.0,0.01]
[1756839132156,0.15153619,110850.0,110840.0,0.09416]
[1756839132350,0.15153619,110850.0,110840.0,0.09516]
[1756839132952,0.15153619,110850.0,110840.0,0.09716]
[1756839133153,0.01767619,110850.0,110840.0,0.09716]
[1756839133455,0.06457318,110880.0,110850.0,0.0902062]
[1756839133653,0.11100785,110890.0,110870.0,0.46195804]
[1756839133954,0.11100785,110890.0,110870.0,0.99932]
[1756839134159,0.11100785,110890.0,110880.0,0.46195804]
[1756839134358,0.07581785,110890.0,110880.0,0.47195804]
[1756839134546,0.04635,110890.0,110880.0,0.47195804]
[1756839134750,0.04635,110890.0,110880.0,0.72195804]
[1756839135151,0.04735,110890.0,110880.0,0.26]
[1756839135353,0.04735,110890.0,110880.0,0.72195804]
[1756839135552,0.04735,110890.0,110880.0,0.26]
[1756839135753,0.08254,110890.0,110880.0,0.26]
[1756839136455,0.08554,110890.0,110880.0,0.26]
[1756839136859,0.08654,110890.0,110880.0,0.26]
[1756839137665,0.02835,110890.0,110880.0,0.72195804]
[1756839137852,0.05135,110890.0,110880.0,0.47195804]
[1756839138054,0.08654,110890.0,110880.0,0.01]
[1756839139559,0.08654,110890.0,110880.0,0.47195804]
[1756839139865,0.08654,110890.0,110880.0,0.01]
[1756839140763,0.08654,110890.0,110880.0,0.47195804]
[1756839141061,0.08654,110890.0,110880.0,0.01]
[1756839144261,0.33654,110890.0,110880.0,0.01]
[1756839144466,0.79849804,110890.0,110880.0,0.01]
[1756839144763,0.33654,110890.0,110880.0,0.01]
[1756839145470,0.08654,110890.0,110880.0,0.01]
[1756839147565,0.08654,110890.0,110880.0,0.47195804]
[1756839148265,0.08654,110890.0,110880.0,0.01]
[1756839149965,0.79849804,110890.0,110880.0,0.01]
[1756839150357,0.08154,110860.0,110850.0,0.03649102]
[1756839150569,0.08154,110860.0,110850.0,0.33049102]
[1756839150771,0.08154,110860.0,110850.0,0.52444906]
[1756839150973,0.08154,110870.0,110860.0,0.042]
[1756839151468,0.08154,110870.0,110860.0,0.50395804]
[1756839151665,0.03519,110880.0,110860.0,0.75395804]
[1756839151869,0.08154,110880.0,110870.0,0.50395804]
[1756839152461,0.08154,110880.0,110860.0,0.47195804]
[1756839152676,0.08154,110870.0,110860.0,0.99716]
[1756839152858,0.46195804,110890.0,110860.0,1.00716]
[1756839153172,0.08254,110880.0,110870.0,0.50395804]
[1756839153766,0.08154,110880.0,110870.0,0.042]
[1756839154770,0.08354,110880.0,110870.0,0.042]
[1756839154969,0.08354,110880.0,110850.0,0.02049102]
[1756839155276,0.08154,110860.0,110850.0,0.062]
[1756839155473,0.54349804,110860.0,110850.0,0.02]
[1756839155773,0.08154,110830.0,110820.0,1.7724421]
[1756839155973,0.08154,110830.0,110820.0,2.23440014]
[1756839156579,0.08154,110830.0,110820.0,2.21931804]
[1756839156966,0.08154,110830.0,110820.0,1.76236]
[1756839157271,0.04635,110830.0,110820.0,1.76236]
[1756839157466,0.08154,110840.0,110830.0,0.07827]
[1756839157669,0.03519,110830.0,110820.0,1.78236]
[1756839158469,0.06389176,110830.0,110820.0,1.78236]
[1756839158669,0.06389176,110830.0,110820.0,1.78536]
[1756839158869,0.02870176,110830.0,110820.0,2.24731804]
[1756839159072,0.08104,110840.0,110830.0,0.04842]
[1756839159272,0.08104,110840.0,110830.0,0.08242]
[1756839159472,0.05203019,110840.0,110830.0,0.54437804]
[1756839159682,0.05203019,110840.0,110830.0,0.79437804]
[1756839159683,0.02937019,110840.0,110830.0,0.79437804]
[1756839159982,0.08104,110860.0,110850.0,0.04842]
[1756839160183,0.08104,110860.0,110850.0,0.07842]
[1756839160771,0.07435164,110860.0,110850.0,0.54037804]
[1756839161174,0.10973164,110860.0,110850.0,0.07842]
[1756839161982,0.11073164,110860.0,110850.0,0.07842]
[1756839162477,0.08272,110840.0,110830.0,1.05483]
[1756839162879,0.08272,110840.0,110830.0,1.05383]
[1756839163078,0.08272,110840.0,110830.0,0.07799]
[1756839163775,0.08272,110840.0,110830.0,0.07999]
[1756839164083,0.08272,110840.0,110830.0,0.004]
[1756839164785,0.15576935,110840.0,110830.0,0.004]
[1756839165077,0.15576935,110840.0,110830.0,0.003]
[1756839165286,0.17481706,110840.0,110830.0,0.003]
[1756839166082,0.17605765,110840.0,110830.0,0.02448]
[1756839166272,0.17605765,110840.0,110830.0,0.02348]
[1756839166477,0.14167765,110840.0,110830.0,0.78684309]
[1756839166784,0.07528994,110840.0,110830.0,0.78684309]
[1756839167712,0.12262994,110840.0,110830.0,0.07799]
[1756839167976,0.12262994,110840.0,110820.0,0.3892]
[1756839168180,0.08272,110830.0,110820.0,0.43719]
[1756839168389,0.04734,110830.0,110820.0,0.44719]
[1756839168679,0.08272,110830.0,110820.0,0.44719]
[1756839168885,0.08396059,110830.0,110820.0,0.44719]
[1756839169183,0.08396059,110830.0,110820.0,0.05799]
[1756839169184,0.10300705,110830.0,110820.0,0.05799]
[1756839169781,0.08396059,110830.0,110820.0,0.011]
[1756839171586,0.33396059,110830.0,110820.0,0.001]
[1756839171887,0.81186011,110830.0,110820.0,0.001]
[1756839172786,0.77748011,110830.0,110790.0,0.031]
[1756839172992,0.08272,110800.0,110790.0,0.12899]
[1756839173178,0.04734,110800.0,110790.0,0.12899]
[1756839173385,0.02266,110800.0,110790.0,0.12899]
[1756839173587,0.03662059,110810.0,110790.0,0.12899]
[1756839173785,0.08396059,110810.0,110800.0,0.031]
[1756839173987,0.08396059,110810.0,110800.0,0.07899]
[1756839174383,0.00124059,110810.0,110800.0,0.78784309]
[1756839174584,0.00124059,110810.0,110800.0,1.84649059]
[1756839174984,0.00124059,110810.0,110800.0,1.75624309]
[1756839176086,0.00124059,110810.0,110800.0,1.75724309]
[1756839176487,0.00124059,110810.0,110800.0,1.75824309]
[1756839177092,0.00124059,110810.0,110800.0,1.76024309]
[1756839177890,0.00124059,110810.0,110800.0,1.75924309]
[1756839178092,0.00124059,110810.0,110800.0,1.76124309]
[1756839178285,0.00124059,110810.0,110800.0,1.85149059]
[1756839178777,0.00124059,110810.0,110800.0,1.84849059]
[1756839178983,0.00124059,110810.0,110800.0,1.84949059]
[1756839179288,0.00124059,110810.0,110800.0,1.59949059]
[1756839179880,0.00124059,110810.0,110800.0,1.59749059]
[1756839180292,0.00124059,110810.0,110800.0,1.60049059]
[1756839180592,0.00124059,110810.0,110800.0,1.75924309]
[1756839180893,0.00124059,110810.0,110800.0,1.85149059]
[1756839182185,0.00124059,110810.0,110800.0,1.89177588]
[1756839182590,0.00124059,110810.0,110800.0,1.91799713]
[1756839183184,0.00124059,110810.0,110800.0,1.45914404]
[1756839183387,0.00124059,110810.0,110800.0,0.95759713]
[1756839183592,0.00124059,110810.0,110800.0,1.91751713]
[1756839183989,0.00124059,110810.0,110800.0,0.70759713]
[1756839184196,0.00124059,110810.0,110800.0,1.66651713]
[1756839184492,0.00124059,110810.0,110800.0,0.15849654]
[1756839184691,0.00124059,110810.0,110800.0,1.10057158]
[1756839184894,0.00124059,110810.0,110800.0,1.64967217]
[1756839185294,0.00124059,110810.0,110800.0,1.60121059]
[1756839186092,0.00124059,110810.0,110800.0,1.64970096]
[1756839186293,0.00124059,110810.0,110800.0,0.55284309]
[1756839186493,0.00124059,110810.0,110800.0,1.64978468]
[1756839186696,0.00124059,110810.0,110800.0,1.66579713]
[1756839186994,0.00124059,110810.0,110800.0,1.60129059]
[1756839187189,0.00124059,110810.0,110800.0,1.66579713]
[1756839187396,0.00124059,110810.0,110800.0,1.74129059]
[1756839187590,0.00124059,110810.0,110800.0,1.80579713]
[1756839187791,0.00124059,110810.0,110800.0,1.99579713]
[1756839188192,0.00124059,110810.0,110800.0,1.93129059]
[1756839188898,0.00124059,110810.0,110800.0,0.88284309]
[1756839189195,0.00124059,110810.0,110800.0,1.887373]
[1756839189393,0.00124059,110810.0,110800.0,0.931333]
[1756839189595,0.00124059,110810.0,110800.0,1.885693]
[1756839189896,0.00124059,110810.0,110800.0,1.884893]
[1756839190081,0.00124059,110810.0,110800.0,0.931333]
[1756839190486,0.00124059,110810.0,110800.0,1.544373]
[1756839191798,0.08565059,110810.0,110800.0,0.13247991]
[1756839191987,0.00124059,110810.0,110800.0,1.544373]
[1756839192896,0.00124059,110810.0,110800.0,1.6346205]
[1756839193098,0.00124059,110810.0,110800.0,1.8846205]
[1756839194495,0.00124059,110810.0,110800.0,1.90063713]
[1756839194798,0.00124059,110810.0,110800.0,2.27063713]
[1756839194992,0.00124059,110810.0,110800.0,2.20613059]
[1756839195497,0.00124059,110810.0,110800.0,1.82775532]
[1756839195697,0.00124059,110810.0,110800.0,2.28660841]
[1756839195993,0.07304935,110840.0,110830.0,0.1686531]
[1756839196197,0.02351,110850.0,110840.0,0.031]
[1756839196392,0.01948536,110850.0,110840.0,0.62749799]
[1756839196595,0.01948536,110850.0,110840.0,0.53728309]
[1756839196892,0.02869164,110860.0,110850.0,0.031]
[1756839197090,0.04817,110860.0,110850.0,0.53728309]
[1756839197291,0.08441,110860.0,110850.0,1.02607]
[1756839197992,0.08441,110860.0,110850.0,0.07943]
[1756839198192,0.08441,110860.0,110850.0,1.02627]
[1756839198494,0.11342758,110860.0,110850.0,1.02607]
[1756839199197,0.11342758,110860.0,110850.0,0.07943]
[1756839199399,0.11342758,110860.0,110850.0,1.02483]
[1756839199702,0.1328855,110860.0,110850.0,1.02583]
[1756839200692,0.1328855,110860.0,110850.0,1.02511]
[1756839200994,0.3828855,110860.0,110850.0,0.001]
[1756839201197,0.3828855,110860.0,110850.0,0.63816]
[1756839201796,0.3828855,110860.0,110850.0,0.94436]
[1756839202990,0.3828855,110860.0,110850.0,0.001]
[1756839204196,0.08441,110840.0,110830.0,0.04327989]
[1756839204397,0.15808721,110840.0,110830.0,0.01982989]
[1756839204597,0.15808721,110840.0,110830.0,0.04327989]
[1756839204894,0.15808721,110840.0,110830.0,0.06725989]
[1756839204895,0.17754041,110840.0,110830.0,0.06725989]
[1756839205100,0.17754041,110840.0,110830.0,0.09925989]
[1756839205902,0.17754041,110840.0,110830.0,0.06725989]
[1756839206099,0.17754041,110840.0,110830.0,1.00801989]
[1756839206302,0.17754041,110840.0,110830.0,1.04001989]
[1756839206798,0.17754591,110840.0,110830.0,1.00693989]
[1756839207005,0.17754591,110840.0,110830.0,1.03893989]
[1756839208506,0.17754591,110840.0,110830.0,0.06725989]
[1756839208699,0.42754591,110840.0,110830.0,0.01982989]
[1756839209406,0.42754591,110840.0,110830.0,0.09925989]
[1756839209704,0.40808721,110840.0,110830.0,0.01982989]
[1756839210105,0.40808721,110840.0,110830.0,0.09925989]
[1756839210498,0.40808721,110840.0,110830.0,0.01982989]
[1756839211397,0.40808721,110840.0,110830.0,0.04327989]
[1756839211704,0.40808721,110840.0,110830.0,0.01982989]
[1756839213015,0.40808721,110840.0,110830.0,0.04327989]
[1756839214219,0.40808721,110840.0,110830.0,0.06725989]
[1756839214419,0.40808721,110840.0,110830.0,0.09925989]
[1756839214621,0.15808721,110840.0,110830.0,0.55811298]
[1756839214916,0.15808721,110840.0,110830.0,0.80811298]
[1756839215119,0.12184721,110840.0,110830.0,0.34925989]
[1756839215314,0.12184721,110840.0,110830.0,0.80811298]
[1756839216915,0.12184721,110840.0,110830.0,0.89833628]
[1756839216916,0.07367721,110840.0,110830.0,0.89833628]
[1756839217113,0.03624,110850.0,110830.0,0.94682387]
[1756839217311,0.08441,110850.0,110840.0,1.46888309]
[1756839217913,0.08441,110850.0,110840.0,1.55909819]
[1756839218111,0.06525758,110860.0,110850.0,0.032]
[1756839218314,0.13281811,110860.0,110850.0,0.07891]
[1756839218917,0.13281811,110860.0,110850.0,0.53776309]
[1756839218918,0.07710758,110860.0,110850.0,0.53776309]
[1756839219116,0.07810758,110860.0,110850.0,0.53776309]
[1756839219312,0.11244758,110860.0,110850.0,0.53776309]
[1756839219622,0.11144758,110860.0,110850.0,0.53776309]
[1756839219825,0.11144758,110860.0,110850.0,0.07891]
[1756839220016,0.07710758,110860.0,110850.0,0.84669]
[1756839220213,0.07710758,110860.0,110850.0,0.90267]
[1756839220727,0.11144758,110860.0,110850.0,0.90267]
[1756839221810,0.11244758,110860.0,110850.0,0.90267]
[1756839222425,0.11144758,110860.0,110850.0,0.07891]
[1756839222625,0.11144758,110860.0,110850.0,1.00571]
[1756839223724,0.11144758,110860.0,110850.0,0.07891]
[1756839224318,0.13093061,110860.0,110850.0,0.07891]
[1756839225026,0.13193061,110860.0,110850.0,0.53776309]
[1756839225217,0.04950061,110860.0,110850.0,0.87797009]
[1756839225418,0.03001758,110860.0,110850.0,0.88070211]
[1756839226124,0.02901758,110860.0,110850.0,0.88070211]
[1756839226319,0.03434,110880.0,110860.0,0.032]
[1756839226519,0.1000236,110880.0,110870.0,0.53903511]
[1756839226718,0.1000236,110880.0,110870.0,0.07745]
[1756839228224,0.12958484,110880.0,110870.0,0.07745]
[1756839228532,0.04917484,110880.0,110870.0,0.62922581]
[1756839228743,0.02956124,110880.0,110870.0,0.62922581]
[1756839228927,0.002,110880.0,110870.0,0.62922581]
[1756839229129,0.003,110880.0,110870.0,0.62922581]
[1756839229331,0.003,110880.0,110870.0,0.87922581]
[1756839229527,0.003,110880.0,110870.0,0.88922581]
[1756839230128,0.003,110880.0,110870.0,1.81030581]
[1756839230328,0.0315778,110880.0,110870.0,0.88922581]
[1756839230528,0.003,110880.0,110870.0,1.80962581]
[1756839230727,0.003,110880.0,110870.0,0.88922581]
[1756839230927,0.003,110880.0,110870.0,1.80910581]
[1756839231127,0.003,110880.0,110870.0,0.88922581]
[1756839231325,0.003,110880.0,110870.0,1.80906581]
[1756839232834,0.003,110880.0,110870.0,0.88922581]
[1756839233130,0.003,110880.0,110870.0,1.80870581]
[1756839233735,0.003,110880.0,110870.0,0.88922581]
[1756839233931,0.003,110880.0,110870.0,1.80738581]
[1756839234432,0.003,110880.0,110870.0,1.80662581]
[1756839234633,0.03148734,110880.0,110870.0,1.80662581]
[1756839235331,0.003,110880.0,110870.0,1.82670419]
[1756839236232,0.003,110880.0,110870.0,2.2882893]
[1756839236536,0.003,110880.0,110870.0,2.3182893]
[1756839236727,0.003,110880.0,110870.0,1.4008893]
[1756839236922,0.003,110880.0,110870.0,0.93930419]
[1756839237134,0.003,110880.0,110870.0,1.84442419]
[1756839237332,0.003,110880.0,110870.0,2.12442419]
[1756839237630,0.003,110880.0,110870.0,0.51771908]
[1756839237832,0.003,110880.0,110870.0,1.59402419]
[1756839238134,0.003,110880.0,110870.0,1.82402419]
[1756839238328,0.003,110880.0,110870.0,1.59402419]
[1756839238528,0.003,110880.0,110870.0,1.90402419]
[1756839238731,0.003,110880.0,110870.0,1.59358419]
[1756839238930,0.003,110880.0,110870.0,0.90930419]
[1756839239126,0.02643,110880.0,110870.0,0.81911349]
[1756839239325,0.04907,110880.0,110870.0,1.80298419]
[1756839239635,0.08341,110880.0,110870.0,0.58911349]
[1756839239836,0.08341,110880.0,110870.0,1.50279349]
[1756839240031,0.08341,110880.0,110870.0,0.58911349]
[1756839240237,0.33341,110880.0,110870.0,1.04064838]
[1756839240537,0.79499511,110880.0,110870.0,0.96307838]
[1756839240736,0.33341,110880.0,110870.0,0.96307838]
[1756839241437,0.35297007,110880.0,110870.0,0.05007838]
[1756839242836,0.35297007,110880.0,110870.0,0.09552838]
[1756839243137,0.35297007,110880.0,110870.0,0.07300838]
[1756839243441,0.35297007,110880.0,110870.0,0.03]
[1756839243738,0.35297007,110880.0,110870.0,0.07545]
[1756839244526,0.35297007,110880.0,110870.0,0.05293]
[1756839244731,0.35297007,110880.0,110870.0,0.03]
[1756839245928,0.35297007,110880.0,110870.0,0.10745]
[1756839246240,0.35297007,110880.0,110870.0,0.07545]
[1756839246634,0.35297007,110880.0,110870.0,0.10745]
[1756839246834,0.35297007,110880.0,110870.0,0.03]
[1756839247533,0.35297007,110880.0,110870.0,0.05293]
[1756839247732,0.35297007,110880.0,110870.0,0.03]
[1756839248437,0.35297007,110880.0,110870.0,0.05293]
[1756839249038,0.35297007,110880.0,110870.0,0.10745]
[1756839249235,0.35297007,110880.0,110870.0,0.03]
[1756839251134,0.35297007,110880.0,110870.0,0.05389]
[1756839251643,0.56455518,110880.0,110870.0,0.03]
[1756839253245,0.08334,110850.0,110840.0,1.78309]
[1756839253438,0.08334,110850.0,110840.0,1.32942]
[1756839253637,0.11693377,110850.0,110840.0,0.04745]
[1756839253832,0.11693377,110850.0,110840.0,0.95401]
[1756839254141,0.10295377,110850.0,110840.0,0.98942]
[1756839254743,0.10295377,110850.0,110840.0,0.99042]
[1756839254941,0.10295377,110850.0,110840.0,0.99242]
[1756839256441,0.10295377,110850.0,110840.0,0.99146]
[1756839257050,0.06816377,110850.0,110840.0,1.45304511]
[1756839257443,0.10295377,110850.0,110840.0,1.45204511]
[1756839257844,0.10295377,110850.0,110840.0,1.45004511]
[1756839258348,0.03479,110860.0,110840.0,1.79026021]
[1756839258545,0.1030164,110860.0,110850.0,0.54444511]
[1756839259845,0.08334,110860.0,110850.0,0.08286]
[1756839260252,0.08334,110860.0,110850.0,0.54444511]
[1756839260848,0.08434,110860.0,110850.0,0.08286]
[1756839261056,0.08434,110860.0,110850.0,0.54444511]
[1756839262154,0.001,110860.0,110850.0,0.54444511]
[1756839262354,0.001,110860.0,110850.0,0.80923511]
[1756839263346,0.02538,110860.0,110850.0,0.79444511]
[1756839263546,0.04955,110860.0,110850.0,1.69776511]
[1756839264257,0.04955,110860.0,110850.0,1.23618]
[1756839264550,0.04855,110860.0,110850.0,0.08286]
[1756839264755,0.08334,110860.0,110850.0,0.86134]
[1756839265357,0.08334,110860.0,110850.0,0.08286]
[1756839265651,0.08334,110860.0,110850.0,1.28248511]
[1756839265862,0.08334,110860.0,110850.0,0.8209]
[1756839266250,0.08334,110860.0,110850.0,0.08286]
[1756839267561,0.08434,110860.0,110850.0,0.08286]
[1756839268358,0.10403637,110860.0,110850.0,0.08286]
[1756839268974,0.81562148,110860.0,110850.0,0.04745]
[1756839269160,0.01398,110850.0,110830.0,0.06831748]
[1756839269456,0.08334,110840.0,110830.0,1.02600989]
[1756839269762,0.10304606,110840.0,110830.0,0.12268989]
[1756839270262,0.10304606,110840.0,110830.0,0.12368989]
[1756839270857,0.10304606,110840.0,110830.0,0.12568989]
[1756839272053,0.56463117,110840.0,110830.0,0.07045]
[1756839272260,1.34860167,110840.0,110830.0,0.003]
[1756839272452,0.08334,110820.0,110810.0,0.06889759]
[1756839272657,0.54492511,110820.0,110810.0,0.18745]
[1756839272858,0.10303319,110820.0,110810.0,0.18745]
[1756839274058,0.10303319,110820.0,110810.0,0.1684]
[1756839274259,0.5646183,110820.0,110810.0,0.19196]
[1756839274462,0.5656183,110820.0,110810.0,0.19196]
[1756839274650,0.10403319,110820.0,110810.0,0.22737]
[1756839274957,0.10403319,110820.0,110810.0,0.08737]
[1756839275262,0.10403319,110820.0,110810.0,0.00451]
[1756839275658,0.10403319,110820.0,110810.0,0.0284]
[1756839275864,0.12958412,110820.0,110810.0,0.08737]
[1756839277058,0.07510093,110820.0,110810.0,0.54895511]
[1756839277261,0.07510093,110820.0,110810.0,0.08737]
[1756839277569,0.10989093,110820.0,110810.0,0.54895511]
[1756839278271,0.10989093,110820.0,110810.0,0.08737]
[1756839278661,0.10989093,110820.0,110810.0,0.54895511]
[1756839279170,0.10989093,110820.0,110810.0,0.08737]
[1756839279570,0.10989093,110820.0,110810.0,0.54895511]
[1756839281663,0.10989093,110820.0,110810.0,0.08737]
[1756839283169,0.05093093,110820.0,110810.0,0.54895511]
[1756839284673,0.07367093,110820.0,110810.0,0.54895511]
[1756839284864,0.02655093,110820.0,110810.0,0.63919481]
[1756839285071,0.02655093,110820.0,110810.0,0.79895511]
[1756839285465,0.02655093,110820.0,110810.0,0.79621277]
[1756839286179,0.02779152,110820.0,110810.0,0.79621277]
[1756839287975,0.02779152,110820.0,110810.0,0.84621277]
[1756839289078,0.02779152,110820.0,110810.0,1.09621277]
[1756839289771,0.02779152,110820.0,110810.0,1.18645257]
[1756839290877,0.02779152,110820.0,110810.0,2.00125277]
[1756839291077,0.02779152,110820.0,110810.0,2.00137277]
[1756839291980,0.02779152,110820.0,110810.0,1.09621277]
[1756839292483,0.02779152,110820.0,110810.0,2.00073277]
[1756839292775,0.02779152,110820.0,110810.0,1.18645247]
[1756839292973,0.00224059,110820.0,110810.0,2.11126633]
[1756839293574,0.00124059,110820.0,110810.0,2.95490633]
[1756839293779,0.10665635,110870.0,110840.0,0.090215]
[1756839294081,0.13695503,110870.0,110850.0,1.36264277]
[1756839294380,0.04550503,110870.0,110860.0,0.54904177]
[1756839294777,0.02520635,110870.0,110860.0,0.56891142]
[1756839295079,0.005,110870.0,110860.0,0.56891142]
[1756839295275,0.008,110870.0,110860.0,0.90342142]
[1756839295484,0.008,110870.0,110860.0,1.20342142]
[1756839295677,0.004,110870.0,110860.0,1.20342142]